fUST/lending_fUST_20251105
["ID","MTS","AMOUNT","RATE_DAILY","PERIOD"]
[393123691,1762278650234,-153.0,0.00045332,30]
[393123692,1762278650243,-190.8362626,0.00045332,30]
[393123693,1762278650252,-153.0,0.00045332,30]
[393123694,1762278650261,-190.8362626,0.00045332,30]
[393123695,1762278650270,-153.0,0.00045332,30]
[393123696,1762278650279,-190.8362626,0.00045332,30]
[393123697,1762278650289,-153.0,0.00045332,30]
[393123698,1762278650299,-600.0,0.00045435,2]
[393123699,1762278650308,-151.0,0.00045479,120]
[393123700,1762278650317,-1000.0,0.00045479,2]
[393123701,1762278650328,-151.0,0.00045479,120]
[393123702,1762278650337,-3269.32,0.00045479,15]
[393123703,1762278650346,-500.0,0.00045479,120]
[393123704,1762278650356,-933.27,0.00045479,120]
[393123705,1762278650365,-500.0,0.00045479,120]
[393123706,1762278650374,-584.57,0.00045479,120]
[393123707,1762278650384,-1737.84,0.00045479,120]
[393123708,1762278650392,-500.0,0.00045479,120]
[393123709,1762278650401,-500.0,0.00045479,120]
[393123710,1762278650411,-1194.13,0.00045479,2]
[393123711,1762278650421,-500.0,0.00045479,120]
[393123712,1762278650430,-500.0,0.00045479,120]
[393123713,1762278650440,-500.0,0.00045479,120]
[393123714,1762278650449,-609.12,0.00045479,120]
[393123715,1762278650459,-500.0,0.00045479,60]
[393123716,1762278650469,-500.0,0.00045479,120]
[393123717,1762278650479,-500.0,0.00045479,120]
[393123718,1762278650488,-967.97,0.00045479,120]
[393123719,1762278650497,-1810.6,0.00045479,120]
[393123720,1762278650506,-500.0,0.00045479,120]
[393123721,1762278650515,-500.0,0.00045479,2]
[393123722,1762278650523,-845.61,0.00045479,40]
[393123723,1762278650533,-500.0,0.00045479,120]
[393123724,1762278650542,-500.0,0.00045479,120]
[393123725,1762278650551,-500.0,0.00045479,120]
[393123726,1762278650561,-500.0,0.00045479,120]
[393123727,1762278650570,-500.0,0.00045479,120]
[393123728,1762278650580,-500.0,0.00045479,120]
[393123729,1762278650589,-500.0,0.00045479,21]
[393123730,1762278650598,-154.87590211,0.00045479,120]
[393123731,1762278650606,-744.28,0.00045479,120]
[393123732,1762278650616,-8083.74,0.00045479,3]
[393123733,1762278650629,-6176.25,0.00045479,120]
[393123734,1762278650638,-500.0,0.00045479,2]
[393123735,1762278650647,-500.0,0.00045479,10]
[393123736,1762278650656,-500.0,0.00045479,120]
[393123737,1762278650668,-500.0,0.00045479,120]
[393123738,1762278650677,-500.0,0.00045479,120]
[393123739,1762278650686,-500.0,0.00045479,120]
[393123740,1762278650696,-500.0,0.00045479,120]
[393123741,1762278650706,-151.0,0.00045479,120]
[393123742,1762278650715,-500.0,0.00045479,120]
[393123743,1762278650724,-1240.191691,0.00045479,120]
[393123744,1762278650733,-471.03942278,0.00045479,120]
[393123745,1762278650743,-1240.191691,0.00045479,120]
[393123746,1762278650752,-1240.191691,0.00045479,120]
[393123747,1762278650760,-1240.191691,0.00045479,120]
[393123748,1762278650769,-500.0,0.00045479,120]
[393123749,1762278650781,-159.961531,0.00045479,120]
[393123750,1762278650791,-200.0,0.00045479,7]
[393123751,1762278650800,-1976.11,0.00045479,120]
[393123752,1762278650810,-500.0,0.00045479,120]
[393123753,1762278650821,-500.0,0.00045479,120]
[393123754,1762278650831,-5014.04,0.00045479,120]
[393123755,1762278650840,-151.0,0.00045479,120]
[393123756,1762278650849,-500.0,0.00045479,120]
[393123757,1762278650859,-600.8769359,0.00045479,120]
[393123758,1762278650868,-151.0,0.00045479,120]
[393123759,1762278650877,-151.0,0.00045479,120]
[393123760,1762278650888,-500.0,0.00045479,120]
[393123761,1762278650898,-502.25585983,0.00045521,10]
[393123762,1762278650909,-174.33442,0.00045521,7]
[393123763,1762278650919,-151.0,0.00045521,2]
[393123764,1762278650929,-151.0,0.00045521,2]
[393123765,1762278650940,-246.395662,0.00045521,120]
[393123766,1762278650949,-151.0,0.00045521,120]
[393123767,1762278650957,-151.0,0.00045521,120]
[393123768,1762278650966,-151.0,0.00045521,120]
[393123769,1762278650977,-436.89216839,0.00045531,21]
[393123770,1762278650986,-882.25619232,0.00045889,2]
[393123771,1762278650996,-842.18159639,0.00046027,2]
[393123772,1762278651065,-3269.32,0.00046027,15]
[393123773,1762278651077,-500.0,0.00046027,120]
[393123774,1762278651087,-933.27,0.00046027,120]
[393123775,1762278651096,-500.0,0.00046027,120]
[393123776,1762278651104,-584.57,0.00046027,120]
[393123777,1762278651114,-1737.84,0.00046027,120]
[393123778,1762278651124,-500.0,0.00046027,120]
[393123779,1762278651132,-500.0,0.00046027,120]
[393123780,1762278651142,-151.0,0.00046027,120]
[393123781,1762278651151,-158.417749,0.00046027,120]
[393123782,1762278651160,-158.417749,0.00046027,120]
[393123783,1762278651169,-151.0,0.00046027,120]
[393123784,1762278651178,-158.417749,0.00046027,120]
[393123785,1762278651188,-151.0,0.00046027,120]
[393123786,1762278651197,-158.417749,0.00046027,120]
[393123787,1762278651206,-151.0,0.00046027,120]
[393123788,1762278651216,-151.0,0.00046027,120]
[393123789,1762278651225,-151.0,0.00046027,120]
[393123790,1762278651234,-151.965156,0.00046027,7]
[393123791,1762278651243,-151.0,0.00046027,120]
[393123792,1762278651253,-231.429122,0.00046027,120]
[393123793,1762278651262,-1194.13,0.00046027,2]
[393123794,1762278651271,-557.666393,0.00046027,120]
[393123795,1762278651280,-500.0,0.00046027,120]
[393123796,1762278651290,-609.12,0.00046027,120]
[393123797,1762278651299,-500.0,0.00046027,60]
[393123798,1762278651308,-500.0,0.00046027,120]
[393123799,1762278651318,-500.0,0.00046027,120]
[393123800,1762278651329,-967.97,0.00046027,120]
[393123801,1762278651339,-1810.6,0.00046027,120]
[393123802,1762278651347,-500.0,0.00046027,120]
[393123803,1762278651357,-500.0,0.00046027,2]
[393123804,1762278651366,-845.61,0.00046027,40]
[393123805,1762278651375,-500.0,0.00046027,120]
[393123806,1762278651384,-500.0,0.00046027,120]
[393123807,1762278651394,-500.0,0.00046027,120]
[393123808,1762278651403,-363.073179,0.00046027,120]
[393123809,1762278651413,-500.0,0.00046027,120]
[393123810,1762278651423,-363.073179,0.00046027,120]
[393123811,1762278651432,-500.0,0.00046027,120]
[393123812,1762278651442,-363.073179,0.00046027,120]
[393123813,1762278651452,-151.0,0.00046027,120]
[393123814,1762278651461,-363.073179,0.00046027,120]
[393123815,1762278651470,-155.324187,0.00046027,120]
[393123816,1762278651479,-151.0,0.00046027,120]
[393123817,1762278651489,-500.0,0.00046027,120]
[393123818,1762278651498,-151.0,0.00046027,120]
[393123819,1762278651507,-500.0,0.00046027,21]
[393123820,1762278651516,-744.28,0.00046027,120]
[393123821,1762278651525,-8083.74,0.00046027,3]
[393123822,1762278651534,-6176.25,0.00046027,120]
[393123823,1762278651543,-500.0,0.00046027,2]
[393123824,1762278651552,-500.0,0.00046027,10]
[393123825,1762278651561,-317.541981,0.00046027,120]
[393123826,1762278651570,-500.0,0.00046027,120]
[393123827,1762278651581,-317.541981,0.00046027,120]
[393123828,1762278651590,-317.541981,0.00046027,120]
[393123829,1762278651600,-317.541981,0.00046027,120]
[393123830,1762278651608,-151.0,0.00046027,120]
[393123831,1762278651618,-553.73393427,0.00046027,120]
[393123832,1762278651631,-151.0,0.00046027,120]
[393123833,1762278651641,-151.0,0.00046027,120]
[393123834,1762278651651,-500.0,0.00046027,120]
[393123835,1762278651662,-500.0,0.00046027,120]
[393123836,1762278651671,-500.0,0.00046027,120]
[393123837,1762278651681,-500.0,0.00046027,120]
[393123838,1762278651690,-533.24791319,0.00046027,120]
[393123839,1762278651702,-1976.11,0.00046027,120]
[393123840,1762278651711,-500.0,0.00046027,120]
[393123841,1762278651720,-500.0,0.00046027,120]
[393123842,1762278651730,-5014.04,0.00046027,120]
[393123843,1762278651739,-500.0,0.00046027,120]
[393123844,1762278651749,-500.0,0.00046027,120]
[393123845,1762278651758,-2207.42057311,0.00046065,4]
[393123846,1762278651767,-3269.32,0.00046575,15]
[393123847,1762278651776,-500.0,0.00046575,120]
[393123848,1762278651785,-933.27,0.00046575,120]
[393123849,1762278651794,-500.0,0.00046575,120]
[393123850,1762278651803,-584.57,0.00046575,120]
[393123851,1762278651812,-1737.84,0.00046575,120]
[393123852,1762278651822,-151.0,0.00046575,120]
[393123853,1762278651832,-151.0,0.00046575,120]
[393123854,1762278651841,-151.0,0.00046575,120]
[393123855,1762278651850,-151.0,0.00046575,7]
[393123856,1762278651861,-151.0,0.00046575,120]
[393123857,1762278651871,-151.0,0.00046575,7]
[393123858,1762278651882,-151.0,0.00046575,120]
[393123859,1762278651892,-151.0,0.00046575,7]
[393123860,1762278651901,-151.0,0.00046575,120]
[393123861,1762278651911,-151.0,0.00046575,120]
[393123862,1762278651920,-151.0,0.00046575,120]
[393123863,1762278651930,-500.0,0.00046575,120]
[393123864,1762278651939,-500.0,0.00046575,120]
[393123865,1762278651948,-1194.13,0.00046575,2]
[393123866,1762278651958,-500.0,0.00046575,120]
[393123867,1762278651968,-456.0,0.00046575,60]
[393123868,1762278651978,-609.12,0.00046575,120]
[393123869,1762278651988,-8542.0,0.00046575,60]
[393123870,1762278651997,-500.0,0.00046575,60]
[393123871,1762278652007,-571.0,0.00046575,60]
[393123872,1762278652017,-500.0,0.00046575,120]
[393123873,1762278652027,-500.0,0.00046575,120]
[393123874,1762278652038,-967.97,0.00046575,120]
[393123875,1762278652048,-252.82013646,0.00046575,60]
[393123876,1762278652058,-1810.6,0.00046575,120]
[393123877,1762278652067,-500.0,0.00046575,120]
[393123878,1762278652079,-153.36452757,0.00046575,60]
[393123879,1762278652088,-500.0,0.00046575,60]
[393123880,1762278652098,-500.0,0.00046575,2]
[393123881,1762278652107,-845.61,0.00046575,40]
[393123882,1762278652117,-500.0,0.00046575,120]
[393123883,1762278652127,-500.0,0.00046575,120]
[393123884,1762278652136,-500.0,0.00046575,120]
[393123885,1762278652146,-500.0,0.00046575,120]
[393123886,1762278652156,-360.91,0.00046575,120]
[393123887,1762278652166,-500.0,0.00046575,120]
[393123888,1762278652175,-609.3728438,0.00046575,21]
[393123889,1762278652247,-744.28,0.00046575,120]
[393123890,1762278652258,-8083.74,0.00046575,3]
[393123891,1762278652269,-6176.25,0.00046575,120]
[393123892,1762278652279,-500.0,0.00046575,2]
[393123893,1762278652288,-300.64369431,0.00046575,120]
[393123894,1762278652298,-500.0,0.00046575,120]
[393123895,1762278652308,-624.7965779,0.00046575,120]
[393123896,1762278652319,-374.87622351,0.00046575,120]
[393123897,1762278652330,-500.0,0.00046575,120]
[393123898,1762278652340,-1976.11,0.00046575,120]
[393123899,1762278652351,-500.0,0.00046575,120]
[393123900,1762278652362,-500.0,0.00046575,120]
[393123901,1762278652372,-5014.04,0.00046575,120]
[393123902,1762278652382,-684.0,0.00046575,60]
[393123903,1762278652391,-500.0,0.00046575,120]
[393123904,1762278652402,-500.0,0.00046575,120]
[393123905,1762278652411,-160.0,0.00046589,6]
[393123906,1762278652421,-151.0,0.000466,120]
[393123907,1762278652431,-151.0,0.000466,120]
[393123908,1762278652441,-151.0,0.000466,120]
[393123909,1762278652451,-164.412989,0.000466,120]
[393123910,1762278652461,-151.0,0.000466,120]
[393123911,1762278652471,-159.429616,0.000466,120]
[393123912,1762278652482,-151.0,0.000466,120]
[393123913,1762278652492,-679.211232,0.000466,15]
[393123914,1762278652502,-679.211232,0.000466,15]
[393123915,1762278652511,-679.211232,0.000466,15]
[393123916,1762278652520,-679.211232,0.000466,15]
[393123917,1762278652531,-198.696557,0.000466,120]
[393123918,1762278652541,-456.0,0.0004663,60]
[393123919,1762278652551,-8542.0,0.0004663,60]
[393123920,1762278652560,-571.0,0.0004663,60]
[393123921,1762278652570,-500.0,0.0004663,60]
[393123922,1762278652580,-684.0,0.0004663,60]
[393123923,1762278652590,-178.346058,0.0004663,120]
[393123924,1762278652599,-151.0,0.0004663,120]
[393123925,1762278652609,-297.245916,0.0004663,120]
[393123926,1762278652621,-297.245916,0.0004663,120]
[393123927,1762278652631,-297.245916,0.0004663,120]
[393123928,1762278652640,-297.245916,0.0004663,120]
[393123929,1762278652650,-257.171001,0.0004663,120]
[393123930,1762278652659,-257.171001,0.0004663,120]
[393123931,1762278652668,-343.975031,0.0004663,120]
[393123932,1762278652678,-257.171001,0.0004663,120]
[393123933,1762278652687,-343.975031,0.0004663,120]
[393123934,1762278652698,-257.171001,0.0004663,120]
[393123935,1762278652707,-343.975031,0.0004663,120]
[393123936,1762278652716,-151.0,0.0004663,120]
[393123937,1762278652725,-151.0,0.0004663,100]
[393123938,1762278652735,-151.0,0.0004663,100]
[393123939,1762278652744,-456.0,0.00046685,60]
[393123940,1762278652754,-8542.0,0.00046685,60]
[393123941,1762278652763,-571.0,0.00046685,60]
[393123942,1762278652771,-500.0,0.00046685,60]
[393123943,1762278652780,-684.0,0.00046685,60]
[393123944,1762278652789,-1000.0,0.00046709,90]
[393123945,1762278652798,-1000.0,0.00046709,90]
[393123946,1762278652807,-456.0,0.00046739,60]
[393123947,1762278652817,-8542.0,0.00046739,60]
[393123948,1762278652826,-571.0,0.00046739,60]
[393123949,1762278652835,-500.0,0.00046739,60]
[393123950,1762278652845,-684.0,0.00046739,60]
[393123951,1762278652854,-456.0,0.00046794,60]
[393123952,1762278652863,-8542.0,0.00046794,60]
[393123953,1762278652872,-571.0,0.00046794,60]
[393123954,1762278652881,-500.0,0.00046794,60]
[393123955,1762278652890,-684.0,0.00046794,60]
[393123956,1762278652899,-177.0,0.00046818,120]
[393123957,1762278652908,-456.0,0.00046849,60]
[393123958,1762278652918,-8542.0,0.00046849,60]
[393123959,1762278652927,-571.0,0.00046849,60]
[393123960,1762278652937,-500.0,0.00046849,60]
[393123961,1762278652946,-684.0,0.00046849,60]
[393123962,1762278652955,-456.0,0.00046904,60]
[393123963,1762278652964,-8542.0,0.00046904,60]
[393123964,1762278652973,-571.0,0.00046904,60]
[393123965,1762278652982,-500.0,0.00046904,60]
[393123966,1762278652991,-684.0,0.00046904,60]
[393123967,1762278653000,-456.0,0.00046959,60]
[393123968,1762278653010,-8542.0,0.00046959,60]
[393123969,1762278653020,-571.0,0.00046959,60]
[393123970,1762278653029,-500.0,0.00046959,60]
[393123971,1762278653038,-684.0,0.00046959,60]
[393123972,1762278653047,-888.3185658,0.0004699,2]
[393123973,1762278653056,-154.277625,0.00047,120]
[393123974,1762278653065,-151.0,0.00047,120]
[393123975,1762278653075,-151.0,0.00047,120]
[393123976,1762278653085,-151.0,0.00047,120]
[393123977,1762278653095,-151.0,0.00047,120]
[393123978,1762278653105,-151.0,0.00047,120]
[393123979,1762278653114,-151.0,0.00047,120]
[393123980,1762278653123,-151.0,0.00047,120]
[393123981,1762278653134,-151.0,0.00047,120]
[393123982,1762278653143,-151.0,0.00047,120]
[393123983,1762278653152,-151.0,0.00047,120]
[393123984,1762278653162,-571.650161,0.00047,120]
[393123985,1762278653172,-571.650161,0.00047,120]
[393123986,1762278653181,-571.650161,0.00047,120]
[393123987,1762278653191,-571.650161,0.00047,120]
[393123988,1762278653200,-456.0,0.00047013,60]
[393123989,1762278653210,-8542.0,0.00047013,60]
[393123990,1762278653219,-571.0,0.00047013,60]
[393123991,1762278653229,-500.0,0.00047013,60]
[393123992,1762278653239,-684.0,0.00047013,60]
[393123993,1762278653248,-456.0,0.00047068,60]
[393123994,1762278653258,-8542.0,0.00047068,60]
[393123995,1762278653267,-571.0,0.00047068,60]
[393123996,1762278653276,-250.76812718,0.00047068,60]
[393123997,1762278653345,-684.0,0.00047068,60]
[393123998,1762278653355,-164.69938,0.00047108,2]
[393123999,1762278653366,-154.863149,0.00047108,2]
[393124000,1762278653376,-456.0,0.00047123,60]
[393124001,1762278653386,-8542.0,0.00047123,60]
[393124002,1762278653397,-571.0,0.00047123,60]
[393124003,1762278653407,-684.0,0.00047123,60]
[393124004,1762278653417,-151.0,0.00047123,120]
[393124005,1762278653427,-3269.32,0.00047123,15]
[393124006,1762278653437,-151.0,0.00047123,120]
[393124007,1762278653446,-151.0,0.00047123,120]
[393124008,1762278653455,-193.31916783,0.00047123,120]
[393124009,1762278653466,-933.27,0.00047123,120]
[393124010,1762278653476,-500.0,0.00047123,120]
[393124011,1762278653486,-584.57,0.00047123,120]
[393124012,1762278653496,-1737.84,0.00047123,120]
[393124013,1762278653507,-500.0,0.00047123,120]
[393124014,1762278653518,-500.0,0.00047123,120]
[393124015,1762278653527,-1194.13,0.00047123,2]
[393124016,1762278653538,-500.0,0.00047123,120]
[393124018,1762278653549,-609.12,0.00047123,120]
[393124019,1762278653560,-500.0,0.00047123,60]
[393124021,1762278653572,-500.0,0.00047123,120]
[393124022,1762278653587,-500.0,0.00047123,120]
[393124023,1762278653597,-967.97,0.00047123,120]
[393124025,1762278653606,-1810.6,0.00047123,120]
[393124026,1762278653616,-500.0,0.00047123,120]
[393124027,1762278653629,-500.0,0.00047123,2]
[393124029,1762278653639,-845.61,0.00047123,40]
[393124030,1762278653650,-500.0,0.00047123,120]
[393124031,1762278653662,-500.0,0.00047123,120]
[393124033,1762278653673,-554.87,0.00047123,120]
[393124034,1762278653683,-500.0,0.00047123,120]
[393124035,1762278653692,-452.8372159,0.00047123,120]
[393124036,1762278653706,-744.28,0.00047123,120]
[393124037,1762278653716,-8083.74,0.00047123,3]
[393124038,1762278653726,-6176.25,0.00047123,120]
[393124039,1762278653737,-500.0,0.00047123,2]
[393124040,1762278653746,-297.68183427,0.00047123,120]
[393124041,1762278653756,-500.0,0.00047123,120]
[393124042,1762278653766,-1976.11,0.00047123,120]
[393124043,1762278653777,-500.0,0.00047123,120]
[393124044,1762278653786,-500.0,0.00047123,120]
[393124045,1762278653796,-5014.04,0.00047123,120]
[393124046,1762278653805,-500.0,0.00047123,120]
[393124047,1762278653815,-500.0,0.00047123,120]
[393124048,1762278653827,-456.0,0.00047178,60]
[393124049,1762278653838,-8542.0,0.00047178,60]
[393124050,1762278653848,-571.0,0.00047178,60]
[393124051,1762278653858,-684.0,0.00047178,60]
[393124052,1762278653868,-456.0,0.00047233,60]
[393124053,1762278653878,-8542.0,0.00047233,60]
[393124054,1762278653889,-571.0,0.00047233,60]
[393124055,1762278653898,-684.0,0.00047233,60]
[393124056,1762278653907,-151.0,0.00047233,120]
[393124057,1762278653917,-1240.191691,0.00047233,120]
[393124058,1762278653926,-1240.191691,0.00047233,120]
[393124059,1762278653936,-1240.191691,0.00047233,120]
[393124060,1762278653945,-1240.191691,0.00047233,120]
[393124061,1762278653955,-151.0,0.00047233,120]
[393124062,1762278653963,-151.0,0.00047233,120]
[393124063,1762278653973,-164.69938,0.00047265,7]
[393124064,1762278653983,-154.863149,0.00047265,7]
[393124065,1762278653992,-7954.6930401,0.00047272,2]
[393124066,1762278654002,-456.0,0.00047287,60]
[393124067,1762278654012,-8542.0,0.00047287,60]
[393124068,1762278654021,-571.0,0.00047287,60]
[393124069,1762278654031,-684.0,0.00047287,60]
[393124070,1762278654040,-456.0,0.00047342,60]
[393124071,1762278654050,-8542.0,0.00047342,60]
[393124072,1762278654060,-571.0,0.00047342,60]
[393124073,1762278654069,-684.0,0.00047342,60]
[393124074,1762278654081,-456.0,0.00047397,60]
[393124075,1762278654090,-3568.4954595,0.00047397,60]
[393124076,1762278654563,-500.0,0.00026107,2]
[393124077,1762278654574,-500.0,0.00026107,2]
[393124078,1762278654584,-500.0,0.00026107,2]
[393124079,1762278654593,-500.0,0.00026107,2]
[393124080,1762278654602,-500.0,0.00026107,2]
[393124081,1762278654612,-501.29117119,0.00026107,2]
[393124082,1762278654625,-79.59811754,0.00026107,2]
[393124083,1762278654636,-420.40188246,0.00026107,2]
[393124084,1762278654647,-500.0,0.00026107,2]
[393124085,1762278654657,-158.10744497,0.00026107,2]
[393124086,1762278654667,-500.0,0.00026107,2]
[393124087,1762278654676,-328.17227545,0.00026107,2]
[393124088,1762278654694,-171.82772455,0.00026107,2]
[393124089,1762278654703,-500.0,0.00026107,2]
[393124090,1762278654712,-350.04188746,0.00026107,2]
[393124091,1762278654729,-149.95811254,0.00026107,2]
[393124092,1762278654738,-500.0,0.00026107,2]
[393124093,1762278654747,-500.0,0.00026107,2]
[393124094,1762278654757,-500.0,0.00026107,2]
[393124095,1762278654773,-390.37686491,0.00026107,2]
[393124096,1762278654790,-500.0,0.00026107,2]
[393124097,1762278654808,-500.0,0.00026107,2]
[393124098,1762278654826,-501.09781626,0.00026107,2]
[393124099,1762278654845,-500.0,0.00026107,2]
[393124100,1762278654862,-383.52528156,0.00026107,2]
[393124101,1762278654880,-500.0,0.00026107,2]
[393124102,1762278654895,-500.0,0.00026107,2]
[393124103,1762278654912,-500.0,0.00026107,2]
[393124104,1762278654931,-404.57468889,0.00026107,2]
[393124105,1762278654950,-500.0,0.00026107,2]
[393124106,1762278654963,-387.8812746,0.00026107,2]
[393124107,1762278654983,-500.0,0.00026107,2]
[393124108,1762278654996,-500.0,0.00026107,2]
[393124109,1762278655012,-500.0,0.00026107,2]
[393124110,1762278655028,-500.0,0.00026107,2]
[393124111,1762278655042,-500.0,0.00026107,2]
[393124112,1762278655058,-500.0,0.00026107,2]
[393124113,1762278655073,-500.0,0.00026107,2]
[393124114,1762278655087,-500.0,0.00026107,2]
[393124115,1762278655101,-500.0,0.00026107,2]
[393124116,1762278655113,-500.0,0.00026107,2]
[393124117,1762278655122,-500.0,0.00026107,2]
[393124118,1762278655131,-500.0,0.00026107,2]
[393124119,1762278655141,-151.0,0.00037439,31]
[393124120,1762278655150,-189.35119674,0.00043835,120]
[393124121,1762278655159,-500.0,0.00043835,120]
[393124122,1762278655169,-151.0,0.00043835,120]
[393124123,1762278655179,-500.0,0.00044383,120]
[393124124,1762278655188,-500.0,0.00044931,120]
[393124125,1762278655198,-151.0,0.00045479,120]
[393124126,1762278655208,-200.6898,0.00047233,120]
[393124127,1762278655217,-4973.5045405,0.00047397,60]
[393124128,1762278655228,-571.0,0.00047397,60]
[393124129,1762278655238,-684.0,0.00047397,60]
[393124130,1762278655247,-151.0,0.00047444,120]
[393124131,1762278655257,-456.0,0.00047452,60]
[393124132,1762278655266,-8542.0,0.00047452,60]
[393124133,1762278655276,-571.0,0.00047452,60]
[393124134,1762278655286,-684.0,0.00047452,60]
[393124135,1762278655295,-363.073179,0.00047452,120]
[393124136,1762278655305,-363.073179,0.00047452,120]
[393124137,1762278655315,-363.073179,0.00047452,120]
[393124138,1762278655325,-151.0,0.00047452,120]
[393124139,1762278655334,-363.073179,0.00047452,120]
[393124140,1762278655523,-151.0,0.00047452,120]
[393124141,1762278655539,-151.0,0.00047452,120]
[393124142,1762278655549,-317.541981,0.00047452,120]
[393124143,1762278655559,-317.541981,0.00047452,120]
[393124144,1762278655568,-317.541981,0.00047452,120]
[393124145,1762278655581,-317.541981,0.00047452,120]
[393124146,1762278655590,-151.0,0.00047452,120]
[393124147,1762278655599,-151.0,0.00047452,120]
[393124148,1762278655608,-151.0,0.00047452,120]
[393124149,1762278655622,-456.0,0.00047507,60]
[393124150,1762278655632,-8542.0,0.00047507,60]
[393124151,1762278655642,-571.0,0.00047507,60]
[393124152,1762278655651,-684.0,0.00047507,60]
[393124153,1762278655661,-456.0,0.00047561,60]
[393124154,1762278655671,-3469.692436,0.00047561,60]
[393124155,1762278655808,-151.0,0.00025982,7]
[393124156,1762278655818,-227.31653,0.00037439,31]
[393124157,1762278655829,-99.68347,0.00043835,120]
[393124158,1762278655840,-422.95244536,0.00043835,120]
[393124159,1762278655849,-500.0,0.00043835,120]
[393124160,1762278655859,-210.65661683,0.00043835,120]
[393124161,1762278655870,-124.76313449,0.00043835,120]
[393124162,1762278655879,-886.95632991,0.00043835,2]
[393124163,1762278655891,-113.04367009,0.00043835,2]
[393124164,1762278655900,-508.27552806,0.00043835,120]
[393124165,1762278655908,-500.0,0.00043835,120]
[393124166,1762278655917,-121.44980382,0.00043835,120]
[393124167,1762278655929,-378.55019618,0.00043835,120]
[393124168,1762278655938,-500.0,0.00044383,120]
[393124169,1762278655947,-566.0691558,0.00044383,2]
[393124170,1762278655956,-500.0,0.00044383,120]
[393124171,1762278655965,-500.0,0.00044383,120]
[393124172,1762278655975,-500.0,0.00044931,120]
[393124173,1762278655984,-500.0,0.00044931,120]
[393124174,1762278655994,-500.0,0.00045479,120]
[393124175,1762278656003,-500.0,0.00045479,120]
[393124176,1762278656012,-500.0,0.00045479,120]
[393124177,1762278656022,-500.0,0.00046027,120]
[393124178,1762278656031,-500.0,0.00046027,120]
[393124179,1762278656040,-500.0,0.00046575,120]
[393124180,1762278656049,-500.0,0.00046575,120]
[393124181,1762278656059,-500.0,0.00047123,120]
[393124182,1762278656069,-5072.307564,0.00047561,60]
[393124183,1762278656079,-571.0,0.00047561,60]
[393124184,1762278656088,-684.0,0.00047561,60]
[393124185,1762278656096,-456.0,0.00047616,60]
[393124186,1762278656105,-8542.0,0.00047616,60]
[393124187,1762278656116,-571.0,0.00047616,60]
[393124188,1762278656126,-684.0,0.00047616,60]
[393124189,1762278656135,-456.0,0.00047671,60]
[393124190,1762278656144,-8542.0,0.00047671,60]
[393124191,1762278656154,-571.0,0.00047671,60]
[393124192,1762278656163,-684.0,0.00047671,60]
[393124193,1762278656172,-3269.32,0.00047671,15]
[393124194,1762278656181,-157.847818,0.00047671,120]
[393124195,1762278656190,-151.0,0.00047671,120]